[Event "Late-Titled-Tuesday-Blitz-March-26-2024"]
[Site "Chess.com"]
[Date "2024.03.26"]
[Round "4"]
[White "maciek_92"]
[Black "GHANDEEVAM2003"]
[Result "0-1"]
[WhiteElo "2874"]
[BlackElo "3047"]
[TimeControl "180+1"]
[EndTime "14:38:44 PDT"]
[Termination "GHANDEEVAM2003 won by resignation"]

1. c4 {[%clk 0:03:00.9]} 1... g6 {[%clk 0:02:57.4]} 2. Nc3 {[%clk 0:03:00.7]}
2... Bg7 {[%clk 0:02:58.1]} 3. g3 {[%clk 0:03:01.5]} 3... c5 {[%clk 0:02:57.9]}
4. Bg2 {[%clk 0:03:02.1]} 4... d6 {[%clk 0:02:57.5]} 5. e3 {[%clk 0:03:02.8]}
5... h5 {[%clk 0:02:57.8]} 6. Nge2 {[%clk 0:03:03.5]} 6... h4 {[%clk 0:02:57.7]}
7. O-O {[%clk 0:03:04.3]} 7... Nc6 {[%clk 0:02:56.6]} 8. d4 {[%clk 0:03:03.8]}
8... hxg3 {[%clk 0:02:55.7]} 9. hxg3 {[%clk 0:02:59.9]} 9... Bg4 {[%clk
0:02:54.8]} 10. f3 {[%clk 0:02:58]} 10... Bd7 {[%clk 0:02:49.8]} 11. b3 {[%clk
0:02:34.1]} 11... Nh6 {[%clk 0:02:44.8]} 12. g4 {[%clk 0:02:25.5]} 12... cxd4
{[%clk 0:02:23.1]} 13. exd4 {[%clk 0:02:26.4]} 13... Qa5 {[%clk 0:02:23.4]} 14.
Be3 {[%clk 0:02:18.8]} 14... Bxg4 {[%clk 0:02:03.8]} 15. Nd5 {[%clk 0:02:06.6]}
15... Be6 {[%clk 0:01:57.3]} 16. Ndf4 {[%clk 0:01:29.1]} 16... Nf5 {[%clk
0:01:48.2]} 17. Bf2 {[%clk 0:01:28.1]} 17... Bd7 {[%clk 0:01:45.6]} 18. a3
{[%clk 0:01:20.2]} 18... Nh4 {[%clk 0:01:45.4]} 19. Nd5 {[%clk 0:01:17.9]} 19...
Nxg2 {[%clk 0:01:39.4]} 20. b4 {[%clk 0:01:18.3]} 20... Qd8 {[%clk 0:01:38.8]}
21. Kxg2 {[%clk 0:01:18.4]} 21... Bh3+ {[%clk 0:01:38.5]} 22. Kg1 {[%clk
0:01:18.8]} 22... e6 {[%clk 0:01:37.7]} 23. Ndf4 {[%clk 0:01:07.5]} 23... Qg5+
{[%clk 0:01:37]} 24. Bg3 {[%clk 0:01:08.1]} 24... Bxf1 {[%clk 0:01:32]} 25. Qxf1
{[%clk 0:01:08.4]} 25... Nxd4 {[%clk 0:01:28.7]} 26. Rd1 {[%clk 0:01:04.9]}
26... Nf5 {[%clk 0:01:26]} 27. Qf2 {[%clk 0:01:03.4]} 27... Be5 {[%clk
0:01:21.7]} 28. Kg2 {[%clk 0:00:59.3]} 28... Nxg3 {[%clk 0:01:21.3]} 29. Qxg3
{[%clk 0:00:59.4]} 29... Qxg3+ {[%clk 0:01:21.2]} 0-1

[Event "Late-Titled-Tuesday-Blitz-March-26-2024"]
[Site "Chess.com"]
[Date "2024.03.26"]
[Round "4"]
[White "Kiborg95"]
[Black "Keks2017"]
[Result "0-1"]
[WhiteElo "2770"]
[BlackElo "2572"]
[TimeControl "180+1"]
[EndTime "14:38:47 PDT"]
[Termination "Keks2017 won by resignation"]

1. e4 {[%clk 0:02:58.5]} 1... d6 {[%clk 0:02:59.1]} 2. d4 {[%clk 0:02:57.9]}
2... Nf6 {[%clk 0:02:59.3]} 3. Nc3 {[%clk 0:02:56.1]} 3... g6 {[%clk 0:02:58.1]}
4. f4 {[%clk 0:02:55.2]} 4... Bg7 {[%clk 0:02:58.1]} 5. Nf3 {[%clk 0:02:55.1]}
5... c5 {[%clk 0:02:57.5]} 6. dxc5 {[%clk 0:02:49.9]} 6... Qa5 {[%clk
0:02:56.4]} 7. Qd4 {[%clk 0:02:47.1]} 7... Nc6 {[%clk 0:02:55.3]} 8. Bb5 {[%clk
0:02:46.6]} 8... Bd7 {[%clk 0:02:55.1]} 9. Qa4 {[%clk 0:02:44.6]} 9... Qxa4
{[%clk 0:02:54.3]} 10. Bxa4 {[%clk 0:02:44.1]} 10... Nb4 {[%clk 0:02:54.3]} 11.
e5 {[%clk 0:02:10]} 11... Bxa4 {[%clk 0:02:44.4]} 12. exf6 {[%clk 0:02:09]}
12... Bxf6 {[%clk 0:02:42.5]} 13. Nxa4 {[%clk 0:02:08.2]} 13... Nxc2+ {[%clk
0:02:42.3]} 14. Kf2 {[%clk 0:02:08.6]} 14... Nxa1 {[%clk 0:02:41.9]} 15. Bd2
{[%clk 0:01:55.6]} 15... Nc2 {[%clk 0:02:39.5]} 16. cxd6 {[%clk 0:01:56.1]}
16... Nd4 {[%clk 0:02:27.5]} 17. dxe7 {[%clk 0:01:49.1]} 17... Nxf3 {[%clk
0:02:26.9]} 18. Kxf3 {[%clk 0:01:50]} 18... Bxe7 {[%clk 0:02:12.6]} 19. Re1
{[%clk 0:01:50]} 19... Kd7 {[%clk 0:02:12.2]} 20. Bc3 {[%clk 0:01:48.5]} 20...
Rhc8 {[%clk 0:02:10.3]} 21. Bd4 {[%clk 0:01:44.8]} 21... b6 {[%clk 0:02:05.1]}
22. Nc3 {[%clk 0:01:45.2]} 22... Bc5 {[%clk 0:02:03.9]} 23. Bf6 {[%clk
0:01:45.3]} 23... Re8 {[%clk 0:02:01.7]} 24. Rd1+ {[%clk 0:01:45.3]} 24... Kc6
{[%clk 0:02:01.4]} 25. Nd5 {[%clk 0:01:44.3]} 25... Re6 {[%clk 0:01:51.4]} 26.
b4 {[%clk 0:01:38.6]} 26... Bd6 {[%clk 0:01:50.4]} 27. Ba1 {[%clk 0:01:21.5]}
27... f5 {[%clk 0:01:36.1]} 28. a4 {[%clk 0:01:15]} 28... Rae8 {[%clk 0:01:34]}
29. g4 {[%clk 0:00:58.5]} 29... Re1 {[%clk 0:01:25]} 0-1

[Event "Late-Titled-Tuesday-Blitz-March-26-2024"]
[Site "Chess.com"]
[Date "2024.03.26"]
[Round "4"]
[White "dianamirza"]
[Black "dealshark"]
[Result "0-1"]
[WhiteElo "1975"]
[BlackElo "2281"]
[TimeControl "180+1"]
[EndTime "14:38:53 PDT"]
[Termination "dealshark won by resignation"]

1. d4 {[%clk 0:02:44.6]} 1... d5 {[%clk 0:02:58.7]} 2. Nf3 {[%clk 0:02:32.2]}
2... e6 {[%clk 0:02:57.5]} 3. e3 {[%clk 0:01:45.6]} 3... c5 {[%clk 0:02:57.1]}
4. Bd3 {[%clk 0:01:46.5]} 4... Nc6 {[%clk 0:02:56.3]} 5. b3 {[%clk 0:01:46.7]}
5... Nf6 {[%clk 0:02:56.1]} 6. Bb2 {[%clk 0:01:44.3]} 6... a6 {[%clk 0:02:47.2]}
7. Nbd2 {[%clk 0:01:09.3]} 7... cxd4 {[%clk 0:02:42.6]} 8. exd4 {[%clk
0:01:01.7]} 8... Be7 {[%clk 0:02:42.6]} 9. Ne5 {[%clk 0:01:02.1]} 9... Nxe5
{[%clk 0:02:41.4]} 10. dxe5 {[%clk 0:01:03]} 10... Nd7 {[%clk 0:02:39.6]} 11.
O-O {[%clk 0:01:00.7]} 11... O-O {[%clk 0:02:39.6]} 12. f4 {[%clk 0:00:58.7]}
12... f6 {[%clk 0:02:29.9]} 13. Qh5 {[%clk 0:00:50.6]} 13... f5 {[%clk
0:02:23.5]} 14. Rf3 {[%clk 0:00:48.8]} 14... Qe8 {[%clk 0:02:20.6]} 15. Qh3
{[%clk 0:00:47.6]} 15... Nc5 {[%clk 0:02:17.9]} 16. g4 {[%clk 0:00:40.9]} 16...
Nxd3 {[%clk 0:02:14.9]} 17. cxd3 {[%clk 0:00:41.8]} 17... fxg4 {[%clk
0:02:14.2]} 18. Qxg4 {[%clk 0:00:42.2]} 18... g6 {[%clk 0:02:04.4]} 19. Kh1
{[%clk 0:00:41.3]} 19... Bd7 {[%clk 0:02:01.7]} 20. Rg1 {[%clk 0:00:37]} 20...
Qf7 {[%clk 0:02:01.2]} 21. d4 {[%clk 0:00:36.5]} 21... Rac8 {[%clk 0:02:00.6]}
22. Rh3 {[%clk 0:00:33.6]} 22... Rc2 {[%clk 0:01:53.8]} 23. Bc1 {[%clk 0:00:33]}
23... Qf5 {[%clk 0:01:50.3]} 24. Qd1 {[%clk 0:00:15.4]} 24... Rfc8 {[%clk
0:01:45.9]} 25. Qg4 {[%clk 0:00:07.8]} 0-1

[Event "Late-Titled-Tuesday-Blitz-March-26-2024"]
[Site "Chess.com"]
[Date "2024.03.26"]
[Round "4"]
[White "teresin05"]
[Black "Bala-Afiada"]
[Result "0-1"]
[WhiteElo "2224"]
[BlackElo "1861"]
[TimeControl "180+1"]
[EndTime "14:39:21 PDT"]
[Termination "Bala-Afiada won by resignation"]

1. e4 {[%clk 0:03:00.9]} 1... c5 {[%clk 0:02:46.7]} 2. Nf3 {[%clk 0:03:00.8]}
2... Nc6 {[%clk 0:02:46.3]} 3. d4 {[%clk 0:03:01.3]} 3... cxd4 {[%clk
0:02:46.7]} 4. Nxd4 {[%clk 0:03:02.2]} 4... Nf6 {[%clk 0:02:45.6]} 5. Nc3 {[%clk
0:03:01.2]} 5... d6 {[%clk 0:02:46.2]} 6. f3 {[%clk 0:02:59.5]} 6... e6 {[%clk
0:02:46]} 7. Be3 {[%clk 0:02:59.8]} 7... Be7 {[%clk 0:02:46.1]} 8. Qd2 {[%clk
0:03:00.3]} 8... O-O {[%clk 0:02:44.9]} 9. O-O-O {[%clk 0:03:00.8]} 9... Nxd4
{[%clk 0:02:45.2]} 10. Bxd4 {[%clk 0:03:00.7]} 10... Qa5 {[%clk 0:02:37.7]} 11.
g4 {[%clk 0:03:01]} 11... a6 {[%clk 0:02:26.3]} 12. h4 {[%clk 0:03:01]} 12... b5
{[%clk 0:02:25.8]} 13. g5 {[%clk 0:03:01]} 13... Nh5 {[%clk 0:02:19.6]} 14. f4
{[%clk 0:03:00.7]} 14... b4 {[%clk 0:02:14.3]} 15. Ne2 {[%clk 0:02:50.2]} 15...
Qxa2 {[%clk 0:02:12.8]} 16. Qe3 {[%clk 0:02:44]} 16... Bb7 {[%clk 0:01:48.3]}
17. Ng3 {[%clk 0:02:41]} 17... Nxg3 {[%clk 0:01:47.9]} 18. Qxg3 {[%clk
0:02:41.9]} 18... Bxe4 {[%clk 0:01:44]} 19. Rg1 {[%clk 0:02:35.4]} 19... Rfc8
{[%clk 0:01:32.1]} 20. Bd3 {[%clk 0:02:31.7]} 20... Bxd3 {[%clk 0:01:18.1]} 21.
Qxd3 {[%clk 0:02:32.6]} 21... Qa1+ {[%clk 0:00:58.5]} 22. Kd2 {[%clk 0:02:29.1]}
22... Qa5 {[%clk 0:00:59.4]} 23. h5 {[%clk 0:02:26.7]} 23... e5 {[%clk
0:00:48.2]} 24. g6 {[%clk 0:02:05.9]} 24... exd4 {[%clk 0:00:25.9]} 25. gxh7+
{[%clk 0:02:02.1]} 25... Kh8 {[%clk 0:00:25.3]} 26. h6 {[%clk 0:02:02.2]} 26...
b3+ {[%clk 0:00:17.9]} 27. c3 {[%clk 0:01:57.1]} 27... dxc3+ {[%clk 0:00:17.3]}
28. bxc3 {[%clk 0:01:56.1]} 28... Bf6 {[%clk 0:00:09.5]} 29. hxg7+ {[%clk
0:01:55.2]} 29... Bxg7 {[%clk 0:00:09.4]} 30. Qg3 {[%clk 0:01:54.7]} 30... Qxc3+
{[%clk 0:00:04.8]} 31. Qxc3 {[%clk 0:01:55.1]} 31... Bxc3+ {[%clk 0:00:04.9]}
32. Kd3 {[%clk 0:01:55.3]} 32... Bg7 {[%clk 0:00:05]} 33. Rb1 {[%clk 0:01:54.8]}
33... Rc3+ {[%clk 0:00:05.1]} 34. Kd2 {[%clk 0:01:54.5]} 34... Rac8 {[%clk
0:00:05.8]} 35. Rb2 {[%clk 0:01:53.8]} 35... Kxh7 {[%clk 0:00:05.9]} 36. Rg2
{[%clk 0:01:49.1]} 36... Rc2+ {[%clk 0:00:06.4]} 37. Rxc2 {[%clk 0:01:49]} 37...
Rxc2+ {[%clk 0:00:07.3]} 38. Ke3 {[%clk 0:01:49.4]} 38... Rxg2 {[%clk
0:00:07.9]} 39. Ke4 {[%clk 0:01:50.3]} 39... Rg6 {[%clk 0:00:08.3]} 0-1

[Event "Late-Titled-Tuesday-Blitz-March-26-2024"]
[Site "Chess.com"]
[Date "2024.03.26"]
[Round "4"]
[White "UK_23"]
[Black "yuriydovzik"]
[Result "1-0"]
[WhiteElo "2386"]
[BlackElo "2115"]
[TimeControl "180+1"]
[EndTime "14:39:22 PDT"]
[Termination "UK_23 won on time"]

1. e4 {[%clk 0:02:57.3]} 1... c6 {[%clk 0:02:51.7]} 2. Nc3 {[%clk 0:02:52.9]}
2... e5 {[%clk 0:02:39.2]} 3. Nf3 {[%clk 0:02:52.2]} 3... d6 {[%clk 0:02:34.5]}
4. d4 {[%clk 0:02:51.7]} 4... Qc7 {[%clk 0:02:33.3]} 5. a4 {[%clk 0:02:50.4]}
5... Bg4 {[%clk 0:02:24.8]} 6. Be3 {[%clk 0:02:47.7]} 6... Nd7 {[%clk
0:02:19.2]} 7. h3 {[%clk 0:02:44.8]} 7... Bxf3 {[%clk 0:02:17.9]} 8. Qxf3 {[%clk
0:02:45.7]} 8... Ngf6 {[%clk 0:02:12.5]} 9. Bc4 {[%clk 0:02:44.8]} 9... Be7
{[%clk 0:02:10]} 10. Ba2 {[%clk 0:02:44.8]} 10... O-O {[%clk 0:02:09.1]} 11. O-O
{[%clk 0:02:44.5]} 11... exd4 {[%clk 0:01:59.2]} 12. Bxd4 {[%clk 0:02:44.1]}
12... Ne5 {[%clk 0:01:59]} 13. Qg3 {[%clk 0:02:41.6]} 13... Nh5 {[%clk
0:01:45.3]} 14. Qh2 {[%clk 0:02:39.6]} 14... g5 {[%clk 0:01:33.5]} 15. f3 {[%clk
0:02:16]} 15... Bf6 {[%clk 0:01:28.7]} 16. Be3 {[%clk 0:02:14.2]} 16... Ng6
{[%clk 0:01:21.4]} 17. g3 {[%clk 0:02:08.7]} 17... Kh8 {[%clk 0:01:10.7]} 18.
Bf2 {[%clk 0:02:08.1]} 18... Be5 {[%clk 0:01:02]} 19. Kg2 {[%clk 0:02:05.8]}
19... f5 {[%clk 0:00:57.1]} 20. exf5 {[%clk 0:02:05]} 20... Rxf5 {[%clk
0:00:56.5]} 21. Be6 {[%clk 0:01:53.9]} 21... Rff8 {[%clk 0:00:44.9]} 22. Bg4
{[%clk 0:01:51.1]} 22... Ng7 {[%clk 0:00:34.1]} 23. Ne4 {[%clk 0:01:42.6]} 23...
Qe7 {[%clk 0:00:14.8]} 24. Be3 {[%clk 0:01:24.6]} 24... h6 {[%clk 0:00:03]} 25.
c3 {[%clk 0:01:22.7]} 1-0

[Event "Late-Titled-Tuesday-Blitz-March-26-2024"]
[Site "Chess.com"]
[Date "2024.03.26"]
[Round "4"]
[White "ValeriyGrinev"]
[Black "BillieKimbah"]
[Result "0-1"]
[WhiteElo "2618"]
[BlackElo "2957"]
[TimeControl "180+1"]
[EndTime "14:39:24 PDT"]
[Termination "BillieKimbah won by resignation"]

1. d4 {[%clk 0:03:00.9]} 1... e6 {[%clk 0:03:00.2]} 2. c4 {[%clk 0:03:00.9]}
2... Bb4+ {[%clk 0:02:59.3]} 3. Nc3 {[%clk 0:03:00.5]} 3... b6 {[%clk
0:02:57.6]} 4. e3 {[%clk 0:02:58.2]} 4... Bb7 {[%clk 0:02:57.4]} 5. Ne2 {[%clk
0:02:57.3]} 5... f5 {[%clk 0:02:51.2]} 6. a3 {[%clk 0:02:57]} 6... Bxc3+ {[%clk
0:02:51.3]} 7. Nxc3 {[%clk 0:02:56.7]} 7... Nf6 {[%clk 0:02:51.9]} 8. Bd3 {[%clk
0:02:54.2]} 8... O-O {[%clk 0:02:43.1]} 9. O-O {[%clk 0:02:49.3]} 9... Qe8
{[%clk 0:02:35.6]} 10. Qc2 {[%clk 0:02:38.6]} 10... d6 {[%clk 0:02:33.9]} 11. b3
{[%clk 0:02:29]} 11... Nbd7 {[%clk 0:02:31.8]} 12. Bb2 {[%clk 0:02:28.6]} 12...
a6 {[%clk 0:02:32]} 13. Rae1 {[%clk 0:02:25.5]} 13... Qh5 {[%clk 0:02:23.6]} 14.
f3 {[%clk 0:02:24.7]} 14... Rae8 {[%clk 0:02:23.2]} 15. b4 {[%clk 0:02:11]}
15... g5 {[%clk 0:02:21.1]} 16. e4 {[%clk 0:02:02.4]} 16... g4 {[%clk
0:02:17.6]} 17. exf5 {[%clk 0:01:55]} 17... gxf3 {[%clk 0:02:11.3]} 18. d5
{[%clk 0:01:25.1]} 18... exd5 {[%clk 0:02:05.2]} 19. Nxd5 {[%clk 0:01:15.3]}
19... Bxd5 {[%clk 0:01:58.6]} 20. cxd5 {[%clk 0:01:15.3]} 20... Rxe1 {[%clk
0:01:48.4]} 21. Rxe1 {[%clk 0:01:15.3]} 21... Ne5 {[%clk 0:01:45.1]} 22. Bxe5
{[%clk 0:00:51.3]} 22... dxe5 {[%clk 0:01:46]} 23. h3 {[%clk 0:00:11.1]} 23...
Kh8 {[%clk 0:01:40.6]} 24. Qd1 {[%clk 0:00:01.7]} 24... Rg8 {[%clk 0:01:40.5]}
25. Bf1 {[%clk 0:00:01.2]} 25... Qxh3 {[%clk 0:01:38.6]} 26. Rxe5 {[%clk
0:00:01.6]} 26... Rxg2+ {[%clk 0:01:32.6]} 0-1

[Event "Late-Titled-Tuesday-Blitz-March-26-2024"]
[Site "Chess.com"]
[Date "2024.03.26"]
[Round "4"]
[White "Bryanl106"]
[Black "janhelmer03"]
[Result "1-0"]
[WhiteElo "2669"]
[BlackElo "2402"]
[TimeControl "180+1"]
[EndTime "14:39:25 PDT"]
[Termination "Bryanl106 won by checkmate"]

1. e4 {[%clk 0:02:57.9]} 1... c5 {[%clk 0:02:59.3]} 2. Nf3 {[%clk 0:02:58.1]}
2... d6 {[%clk 0:02:59.7]} 3. d4 {[%clk 0:02:58.5]} 3... cxd4 {[%clk 0:03:00.3]}
4. Nxd4 {[%clk 0:02:59.4]} 4... Nf6 {[%clk 0:03:00.7]} 5. Nc3 {[%clk 0:02:59.9]}
5... g6 {[%clk 0:03:01.3]} 6. Be3 {[%clk 0:02:59.6]} 6... Bg7 {[%clk 0:03:01.9]}
7. f3 {[%clk 0:03:00.2]} 7... O-O {[%clk 0:03:01.7]} 8. Qd2 {[%clk 0:03:00.9]}
8... Nc6 {[%clk 0:03:02.1]} 9. O-O-O {[%clk 0:03:01.2]} 9... d5 {[%clk
0:03:02.3]} 10. Qe1 {[%clk 0:03:01.9]} 10... Qa5 {[%clk 0:02:59.1]} 11. Nb3
{[%clk 0:02:55.4]} 11... Qc7 {[%clk 0:02:26.1]} 12. exd5 {[%clk 0:02:51.5]}
12... Nb4 {[%clk 0:02:25.2]} 13. a3 {[%clk 0:02:51.4]} 13... Nbxd5 {[%clk
0:02:08.4]} 14. Nxd5 {[%clk 0:02:47.5]} 14... Nxd5 {[%clk 0:02:09.3]} 15. Rxd5
{[%clk 0:02:47.4]} 15... Be6 {[%clk 0:02:10]} 16. Rc5 {[%clk 0:02:34.6]} 16...
Qd6 {[%clk 0:01:55.1]} 17. Bc4 {[%clk 0:02:28.5]} 17... b6 {[%clk 0:01:54.4]}
18. Bxe6 {[%clk 0:02:27.3]} 18... bxc5 {[%clk 0:01:52]} 19. Bc4 {[%clk
0:02:27.6]} 19... Rfc8 {[%clk 0:01:45.4]} 20. Qd2 {[%clk 0:02:19.6]} 20... Qe5
{[%clk 0:01:34.6]} 21. c3 {[%clk 0:02:14.7]} 21... a5 {[%clk 0:01:34.2]} 22. Re1
{[%clk 0:02:12.6]} 22... a4 {[%clk 0:01:31.2]} 23. Na1 {[%clk 0:02:11]} 23...
Qxh2 {[%clk 0:01:29.9]} 24. Bf4 {[%clk 0:02:05.2]} 24... Qh5 {[%clk 0:01:26.3]}
25. Rxe7 {[%clk 0:02:00.5]} 25... Qh1+ {[%clk 0:01:24.7]} 26. Re1 {[%clk
0:01:51.4]} 26... Qh4 {[%clk 0:01:22.6]} 27. g3 {[%clk 0:01:48.3]} 27... Qh5
{[%clk 0:01:21.5]} 28. Nc2 {[%clk 0:01:48.1]} 28... Qxf3 {[%clk 0:01:21.3]} 29.
Bd5 {[%clk 0:01:46.8]} 29... Qg4 {[%clk 0:01:18.1]} 30. Ne3 {[%clk 0:01:45.9]}
30... Qd7 {[%clk 0:01:05.8]} 31. Bxa8 {[%clk 0:01:45]} 31... Qxd2+ {[%clk
0:01:06.7]} 32. Kxd2 {[%clk 0:01:45.3]} 32... Rxa8 {[%clk 0:01:07.6]} 33. Nc4
{[%clk 0:01:45.3]} 33... Rd8+ {[%clk 0:01:02]} 34. Kc2 {[%clk 0:01:45.4]} 34...
h6 {[%clk 0:00:59.4]} 35. Nb6 {[%clk 0:01:44.4]} 35... g5 {[%clk 0:00:59]} 36.
Bc1 {[%clk 0:01:44.1]} 36... f5 {[%clk 0:00:59.2]} 37. Nxa4 {[%clk 0:01:44.2]}
37... Kf7 {[%clk 0:00:58]} 38. Nxc5 {[%clk 0:01:44.4]} 38... Kg6 {[%clk
0:00:57.6]} 39. Ne6 {[%clk 0:01:44.1]} 39... Rh8 {[%clk 0:00:52.8]} 40. Nxg7
{[%clk 0:01:44.1]} 40... Kxg7 {[%clk 0:00:53.7]} 41. a4 {[%clk 0:01:44.5]} 41...
Kg6 {[%clk 0:00:53.3]} 42. b4 {[%clk 0:01:44.2]} 42... h5 {[%clk 0:00:53.7]} 43.
a5 {[%clk 0:01:44.5]} 43... f4 {[%clk 0:00:54.4]} 44. gxf4 {[%clk 0:01:44.9]}
44... g4 {[%clk 0:00:55.3]} 45. b5 {[%clk 0:01:41.9]} 45... h4 {[%clk
0:00:55.8]} 46. f5+ {[%clk 0:01:39.7]} 46... Kxf5 {[%clk 0:00:55.4]} 47. Rf1+
{[%clk 0:01:39.4]} 47... Ke5 {[%clk 0:00:52.5]} 48. a6 {[%clk 0:01:38]} 48... g3
{[%clk 0:00:52.2]} 49. a7 {[%clk 0:01:35.6]} 49... g2 {[%clk 0:00:52.5]} 50.
Re1+ {[%clk 0:01:33.2]} 50... Kd5 {[%clk 0:00:51.5]} 51. Bf4 {[%clk 0:01:32.6]}
51... h3 {[%clk 0:00:51.3]} 52. Bb8 {[%clk 0:01:31.7]} 52... h2 {[%clk
0:00:49.4]} 53. a8=Q+ {[%clk 0:01:31.8]} 53... Kc4 {[%clk 0:00:47.4]} 54. Qc6#
{[%clk 0:01:32.7]} 1-0

[Event "Late-Titled-Tuesday-Blitz-March-26-2024"]
[Site "Chess.com"]
[Date "2024.03.26"]
[Round "4"]
[White "xakevicius91"]
[Black "Kildepiotr"]
[Result "0-1"]
[WhiteElo "2537"]
[BlackElo "2729"]
[TimeControl "180+1"]
[EndTime "14:39:29 PDT"]
[Termination "Kildepiotr won by checkmate"]

1. e4 {[%clk 0:03:00.9]} 1... g6 {[%clk 0:02:56.8]} 2. d4 {[%clk 0:03:00.5]}
2... Bg7 {[%clk 0:02:57.1]} 3. Nf3 {[%clk 0:03:00.8]} 3... c6 {[%clk 0:02:57.7]}
4. Bd3 {[%clk 0:02:59]} 4... d6 {[%clk 0:02:57.9]} 5. a4 {[%clk 0:02:34.5]} 5...
Nd7 {[%clk 0:02:57.6]} 6. O-O {[%clk 0:02:34]} 6... e5 {[%clk 0:02:56.3]} 7. c3
{[%clk 0:02:33.8]} 7... Ngf6 {[%clk 0:02:56.1]} 8. Re1 {[%clk 0:02:32.8]} 8...
O-O {[%clk 0:02:56.1]} 9. h3 {[%clk 0:02:33.4]} 9... Re8 {[%clk 0:02:53]} 10.
Nbd2 {[%clk 0:02:33.3]} 10... Qc7 {[%clk 0:02:52.4]} 11. b4 {[%clk 0:02:20.9]}
11... a5 {[%clk 0:02:50.2]} 12. dxe5 {[%clk 0:02:10.4]} 12... Nxe5 {[%clk
0:02:45.2]} 13. Nxe5 {[%clk 0:02:10.2]} 13... dxe5 {[%clk 0:02:46.1]} 14. Bc4
{[%clk 0:02:04.1]} 14... axb4 {[%clk 0:02:42.6]} 15. cxb4 {[%clk 0:02:02.1]}
15... Be6 {[%clk 0:02:39.5]} 16. Qb3 {[%clk 0:01:56.4]} 16... Nh5 {[%clk
0:02:21.3]} 17. Bxe6 {[%clk 0:01:54.6]} 17... Rxe6 {[%clk 0:02:21.1]} 18. Nc4
{[%clk 0:01:42.4]} 18... b5 {[%clk 0:02:19.2]} 19. axb5 {[%clk 0:01:40.3]} 19...
Rxa1 {[%clk 0:02:18.6]} 20. b6 {[%clk 0:01:32.3]} 20... Qb8 {[%clk 0:02:16.3]}
21. Qb2 {[%clk 0:01:25.7]} 21... Ra8 {[%clk 0:02:06]} 22. Be3 {[%clk 0:01:24]}
22... Nf4 {[%clk 0:02:03.4]} 23. Rd1 {[%clk 0:01:23.9]} 23... Re8 {[%clk
0:01:52.2]} 24. Na5 {[%clk 0:01:24]} 24... Rd8 {[%clk 0:01:41.6]} 25. Rxd8+
{[%clk 0:01:06.3]} 25... Qxd8 {[%clk 0:01:42.5]} 26. b7 {[%clk 0:01:06.9]} 26...
Rb8 {[%clk 0:01:38.1]} 27. Ba7 {[%clk 0:00:56]} 27... Qd1+ {[%clk 0:01:31.8]}
28. Kh2 {[%clk 0:00:55.6]} 28... Qf1 {[%clk 0:01:15.7]} 29. f3 {[%clk
0:00:50.1]} 29... Rxb7 {[%clk 0:01:09.5]} 30. Nxb7 {[%clk 0:00:51]} 30... Qa6
{[%clk 0:01:09.1]} 31. Na5 {[%clk 0:00:38.8]} 31... Qxa7 {[%clk 0:01:08.3]} 32.
Nxc6 {[%clk 0:00:39.1]} 32... Qe3 {[%clk 0:01:04.1]} 33. b5 {[%clk 0:00:37.4]}
33... Ne2 {[%clk 0:01:03.8]} 34. Ne7+ {[%clk 0:00:34.4]} 34... Kf8 {[%clk
0:01:03.6]} 35. Nd5 {[%clk 0:00:35.3]} 35... Qg1# {[%clk 0:01:03]} 0-1

[Event "Late-Titled-Tuesday-Blitz-March-26-2024"]
[Site "Chess.com"]
[Date "2024.03.26"]
[Round "4"]
[White "Supelyel"]
[Black "karinachess1"]
[Result "0-1"]
[WhiteElo "2403"]
[BlackElo "2581"]
[TimeControl "180+1"]
[EndTime "14:39:34 PDT"]
[Termination "karinachess1 won by resignation"]

1. c4 {[%clk 0:03:00.9]} 1... e6 {[%clk 0:02:58.4]} 2. Nc3 {[%clk 0:02:57.6]}
2... d5 {[%clk 0:02:58.3]} 3. cxd5 {[%clk 0:02:58]} 3... exd5 {[%clk 0:02:59.2]}
4. d4 {[%clk 0:02:58.6]} 4... Nf6 {[%clk 0:02:59.2]} 5. Bg5 {[%clk 0:02:57.2]}
5... c6 {[%clk 0:02:59.6]} 6. Qc2 {[%clk 0:02:57.1]} 6... Be7 {[%clk 0:02:59.9]}
7. e3 {[%clk 0:02:57.3]} 7... Nbd7 {[%clk 0:03:00.4]} 8. Bd3 {[%clk 0:02:57.1]}
8... h6 {[%clk 0:03:01]} 9. Bh4 {[%clk 0:02:56.7]} 9... Nh5 {[%clk 0:03:01.6]}
10. Bg3 {[%clk 0:02:55.1]} 10... Nxg3 {[%clk 0:02:56.5]} 11. hxg3 {[%clk
0:02:55.1]} 11... Nb6 {[%clk 0:02:57.1]} 12. Nf3 {[%clk 0:02:50.1]} 12... Be6
{[%clk 0:02:55.5]} 13. a4 {[%clk 0:02:43.3]} 13... Nc4 {[%clk 0:02:51.2]} 14. b3
{[%clk 0:02:19.9]} 14... Nd6 {[%clk 0:02:51.1]} 15. a5 {[%clk 0:02:20]} 15...
Qc8 {[%clk 0:02:45.3]} 16. a6 {[%clk 0:01:54.7]} 16... b6 {[%clk 0:02:36.7]} 17.
Ne5 {[%clk 0:01:55]} 17... Bf5 {[%clk 0:02:26]} 18. Bxf5 {[%clk 0:01:05.8]}
18... Nxf5 {[%clk 0:02:26.9]} 19. Kf1 {[%clk 0:00:59.7]} 19... Bb4 {[%clk
0:02:22.4]} 20. Ne2 {[%clk 0:00:50.1]} 20... Ne7 {[%clk 0:02:19.4]} 21. Rc1
{[%clk 0:00:36.9]} 21... c5 {[%clk 0:01:56.6]} 22. Nd3 {[%clk 0:00:20.2]} 22...
Qxa6 {[%clk 0:01:51.7]} 23. dxc5 {[%clk 0:00:20.5]} 23... bxc5 {[%clk
0:01:43.4]} 24. Nxc5 {[%clk 0:00:21.4]} 24... Bxc5 {[%clk 0:01:40.8]} 25. Qxc5
{[%clk 0:00:22.3]} 25... Rc8 {[%clk 0:01:41.1]} 26. Qxc8+ {[%clk 0:00:12.7]}
26... Nxc8 {[%clk 0:01:42]} 27. Rh4 {[%clk 0:00:11.6]} 27... O-O {[%clk
0:01:41]} 28. Rd4 {[%clk 0:00:12]} 28... Nb6 {[%clk 0:01:40.8]} 29. Rcd1 {[%clk
0:00:11.8]} 29... Rc8 {[%clk 0:01:40.1]} 30. R4d3 {[%clk 0:00:12.7]} 30... Rc2
{[%clk 0:01:38.1]} 31. Nf4 {[%clk 0:00:13.4]} 31... Qa2 {[%clk 0:01:30.5]} 32.
Nh3 {[%clk 0:00:12.4]} 32... g5 {[%clk 0:01:29.3]} 33. Kg1 {[%clk 0:00:12.9]}
33... Kg7 {[%clk 0:01:26.9]} 34. Rd4 {[%clk 0:00:12.8]} 34... Qxb3 {[%clk
0:01:24.3]} 35. Rf1 {[%clk 0:00:12.7]} 35... Rc4 {[%clk 0:01:23.4]} 0-1